[Event "FIDE World Rapid Chess Championship 2021"]
[White "Dvirnyy, Danyyil"]
[Black "Bellahcene, Bilel"]
[WhiteFideId "817570"]
[BlackFideId "696358"]
[WhiteElo "2550"]
[BlackElo "2397"]
[Result "0-1"]
[Round "08"]
[TimeControl "900+10"]
[Date "2021.12.27"]
[WhiteClock "0:01:18"]
[BlackClock "0:00:39"]

1. e4 {[%clk 0:15:00]}  c5 {[%clk 0:15:00]} 2. Nf3 {[%clk 0:15:00]}  Nc6 {[%clk 0:15:00]} 3. Nc3 {[%clk 0:15:00]}  Nf6 {[%clk 0:15:00]} 4. Bb5 {[%clk 0:15:48]}  Nd4 {[%clk 0:16:04]} 5. e5 {[%clk 0:15:48]}  Nxb5 {[%clk 0:16:04]} 6. Nxb5 {[%clk 0:15:48]}  Nd5 {[%clk 0:16:04]} 7. Ng5 {[%clk 0:15:48]}  f6 {[%clk 0:16:04]} 8. exf6 {[%clk 0:15:48]}  exf6 {[%clk 0:16:04]} 9. Qe2+ {[%clk 0:15:48]}  Be7 {[%clk 0:16:08]} 10. Nd6+ {[%clk 0:11:07]}  Kf8 {[%clk 0:16:08]} 11. Qh5 {[%clk 0:11:07]}  g6 {[%clk 0:14:44]} 12. Nxh7+ {[%clk 0:10:59]}  Rxh7 {[%clk 0:11:13]} 13. Qxh7 {[%clk 0:09:13]}  Bxd6 {[%clk 0:07:10]} 14. Qh8+ {[%clk 0:09:13]}  Ke7 {[%clk 0:07:10]} 15. Qg7+ {[%clk 0:09:13]}  Ke6 {[%clk 0:07:10]} 16. O-O {[%clk 0:09:13]}  Be5 {[%clk 0:07:09]} 17. d4 {[%clk 0:07:57]}  cxd4 {[%clk 0:07:09]} 18. f4 {[%clk 0:07:57]}  Bc7 {[%clk 0:07:09]} 19. Re1+ {[%clk 0:07:25]}  Kd6 {[%clk 0:04:22]} 20. c4 {[%clk 0:07:25]}  dxc3 {[%clk 0:02:32]} 21. bxc3 {[%clk 0:06:26]}  Kc6 {[%clk 0:02:32]} 22. c4 {[%clk 0:06:26]}  Nxf4 {[%clk 0:02:32]} 23. Qf7 {[%clk 0:05:42]}  Ne6 {[%clk 0:01:24]} 24. Qxg6 {[%clk 0:02:23]}  Be5 {[%clk 0:01:24]} 25. Rb1 {[%clk 0:02:23]}  Kc7 {[%clk 0:01:24]} 26. Bb2 {[%clk 0:02:23]}  Bxb2 {[%clk 0:00:20]} 27. Rxb2 {[%clk 0:01:59]}  Qe7 {[%clk 0:00:20]} 28. Rd2 {[%clk 0:01:59]}  b6 {[%clk 0:00:20]} 29. Qg3+ {[%clk 0:01:59]}  Kd8 {[%clk 0:00:20]} 30. Red1 {[%clk 0:01:59]}  f5 {[%clk 0:00:20]} 31. Qg8+ {[%clk 0:01:59]}  Qe8 {[%clk 0:00:20]} 32. Qh7 {[%clk 0:01:20]}  f4 {[%clk 0:00:02]} 33. Qe4 {[%clk 0:01:20]}  Rb8 {[%clk 0:00:02]} 34. Rd6 {[%clk 0:01:20]}  Ke7 {[%clk 0:00:02]} 35. Qe5 {[%clk 0:01:20]}  Rb7 {[%clk 0:00:02]} 36. h4 {[%clk 0:01:20]}  Qf7 {[%clk 0:00:02]} 37. h5 {[%clk 0:01:20]}  Qf6 {[%clk 0:00:02]} 38. Qe4 {[%clk 0:01:20]}  Rc7 {[%clk 0:00:02]} 39. Qh7+ {[%clk 0:01:20]}  Qf7 {[%clk 0:00:02]} 40. Qh8 {[%clk 0:01:20]}  f3 {[%clk 0:00:03]} 41. R1d5 {[%clk 0:00:42]}  Rc5 {[%clk 0:00:03]} 42. h6 {[%clk 0:00:42]}  f2+ {[%clk 0:00:03]} 43. Kf1 {[%clk 0:00:42]}  Rxd5 {[%clk 0:00:03]} 44. Rxd5 {[%clk 0:00:42]}  Ba6 {[%clk 0:00:03]} 45. Qc3 {[%clk 0:00:42]}  Kd8 {[%clk 0:00:03]} 46. Rd2 {[%clk 0:00:42]}  Qf4 {[%clk 0:00:03]} 47. Rxf2 {[%clk 0:00:42]}  Qxh6 {[%clk 0:00:03]} 48. Kg1 {[%clk 0:00:10]}  Qh4 {[%clk 0:00:15]} 49. Qe5 {[%clk 0:00:10]}  Qxc4 {[%clk 0:00:15]} 50. Qb8+ {[%clk 0:00:10]}  Ke7 {[%clk 0:00:15]} 51. Qxa7 {[%clk 0:00:10]}  Qc1+ {[%clk 0:00:15]} 52. Kh2 {[%clk 0:00:10]}  Qe3 {[%clk 0:00:15]} 53. Rf3 {[%clk 0:00:10]}  Qe5+ {[%clk 0:00:15]} 54. Kg1 {[%clk 0:00:10]}  Nd4 {[%clk 0:00:15]} 55. Qxa6 {[%clk 0:00:10]}  Nxf3+ {[%clk 0:00:15]} 56. gxf3 {[%clk 0:00:10]}  Qg3+ {[%clk 0:00:15]} 57. Kf1 {[%clk 0:00:10]}  Qxf3+ {[%clk 0:00:15]} 58. Ke1 {[%clk 0:00:10]}  Qe3+ {[%clk 0:00:15]} 59. Kd1 {[%clk 0:00:10]}  Kd6 {[%clk 0:00:15]} 60. a4 {[%clk 0:00:10]}  Qb3+ {[%clk 0:00:15]} 61. Kd2 {[%clk 0:01:25]}  Qb4+ {[%clk 0:01:27]} 62. Kc2 {[%clk 0:01:25]}  Qa5 {[%clk 0:01:27]} 63. Qd3+ {[%clk 0:01:25]}  Kc7 {[%clk 0:01:27]} 64. Kb3 {[%clk 0:01:25]}  Qc5 {[%clk 0:01:27]} 65. Qe4 {[%clk 0:01:25]}  Qc6 {[%clk 0:01:27]} 66. Qe5+ {[%clk 0:01:25]}  Kb7 {[%clk 0:01:27]} 67. Qd4 {[%clk 0:01:25]}  Qe6+ {[%clk 0:01:27]} 68. Kb4 {[%clk 0:01:25]}  d5 {[%clk 0:01:27]} 69. Kb3 {[%clk 0:01:25]}  Qe4 {[%clk 0:01:36]} 70. Qf6 {[%clk 0:00:55]}  Qc4+ {[%clk 0:01:36]} 71. Kb2 {[%clk 0:00:55]}  d4 {[%clk 0:01:36]} 72. Qe7+ {[%clk 0:00:55]}  Ka6 {[%clk 0:01:36]} 73. Qd7 {[%clk 0:00:55]}  d3 {[%clk 0:01:36]} 74. Qe8 {[%clk 0:00:55]}  Ka5 {[%clk 0:01:36]} 75. Qa8+ {[%clk 0:00:55]}  Kb4 {[%clk 0:01:36]} 76. Qf8+ {[%clk 0:00:55]}  Kxa4 {[%clk 0:01:36]} 77. Qa8+ {[%clk 0:00:55]}  Kb4 {[%clk 0:00:47]} 78. Qf8+ {[%clk 0:01:01]}  Qc5 {[%clk 0:00:47]} 79. Qf4+ {[%clk 0:01:01]}  Ka5 {[%clk 0:00:47]} 80. Qh6 {[%clk 0:01:01]}  Qb4+ {[%clk 0:00:47]} 81. Ka2 {[%clk 0:01:01]}  Qc4+ {[%clk 0:00:47]} 82. Kb2 {[%clk 0:01:01]}  d2 {[%clk 0:00:47]} 83. Ka3 {[%clk 0:01:01]}  Qb4+ {[%clk 0:00:47]} 84. Ka2 {[%clk 0:01:01]}  Qc4+ {[%clk 0:00:47]} 85. Ka3 {[%clk 0:01:01]}  d1=Q {[%clk 0:00:47]} 86. Qd2+ {[%clk 0:01:01]}  Kb5 {[%clk 0:00:47]} 87. Qb2+ {[%clk 0:01:18]}  Ka6 {[%clk 0:00:39]} 0-1


[Site "http://www.Chess.com"]

[Event "FIDE World Rapid Chess Championship 2021"]
[White "Nguyen, Thai Dai Van"]
[Black "Blanco Acevedo, Cristobal Jose"]
[WhiteFideId "358878"]
[BlackFideId "3900525"]
[WhiteElo "2488"]
[BlackElo "2289"]
[Result "1-0"]
[Round "08"]
[TimeControl "900+10"]
[Date "2021.12.27"]
[WhiteClock "0:01:54"]
[BlackClock "0:00:41"]

1. d4 {[%clk 0:15:00]}  Nf6 {[%clk 0:15:00]} 2. c4 {[%clk 0:15:00]}  g6 {[%clk 0:15:00]} 3. Nc3 {[%clk 0:15:00]}  Bg7 {[%clk 0:15:00]} 4. e4 {[%clk 0:15:54]}  d6 {[%clk 0:14:15]} 5. Be2 {[%clk 0:15:54]}  c5 {[%clk 0:14:15]} 6. d5 {[%clk 0:15:54]}  O-O {[%clk 0:14:15]} 7. Nf3 {[%clk 0:15:54]}  Bg4 {[%clk 0:14:15]} 8. O-O {[%clk 0:15:54]}  Nbd7 {[%clk 0:14:15]} 9. h3 {[%clk 0:15:54]}  Bxf3 {[%clk 0:14:15]} 10. Bxf3 {[%clk 0:15:54]}  a6 {[%clk 0:14:15]} 11. a4 {[%clk 0:15:54]}  a5 {[%clk 0:14:15]} 12. Be2 {[%clk 0:15:54]}  Kh8 {[%clk 0:14:15]} 13. Be3 {[%clk 0:15:54]}  Ng8 {[%clk 0:14:00]} 14. Qd2 {[%clk 0:14:39]}  Qb6 {[%clk 0:12:28]} 15. Ra3 {[%clk 0:13:48]}  Qd8 {[%clk 0:11:19]} 16. f4 {[%clk 0:12:59]}  Ra6 {[%clk 0:11:19]} 17. Rb3 {[%clk 0:12:59]}  Rb6 {[%clk 0:08:11]} 18. Nb5 {[%clk 0:12:24]}  Ra6 {[%clk 0:08:11]} 19. g4 {[%clk 0:12:24]}  Ndf6 {[%clk 0:08:11]} 20. Bf3 {[%clk 0:12:24]}  Ne8 {[%clk 0:08:11]} 21. Kg2 {[%clk 0:11:50]}  Qd7 {[%clk 0:06:49]} 22. g5 {[%clk 0:11:50]}  f6 {[%clk 0:06:26]} 23. Bg4 {[%clk 0:09:31]}  f5 {[%clk 0:04:07]} 24. exf5 {[%clk 0:09:30]}  gxf5 {[%clk 0:04:07]} 25. Bf3 {[%clk 0:09:30]}  Nc7 {[%clk 0:04:07]} 26. h4 {[%clk 0:09:30]}  Raa8 {[%clk 0:04:07]} 27. Re1 {[%clk 0:09:30]}  Na6 {[%clk 0:04:07]} 28. Bf2 {[%clk 0:09:10]}  Nb4 {[%clk 0:02:37]} 29. Rbe3 {[%clk 0:09:10]}  Na6 {[%clk 0:02:37]} 30. Re6 {[%clk 0:08:48]}  Nc7 {[%clk 0:02:14]} 31. Nxc7 {[%clk 0:08:48]}  Qxc7 {[%clk 0:02:14]} 32. b3 {[%clk 0:08:48]}  Qb6 {[%clk 0:02:14]} 33. Bd1 {[%clk 0:08:48]}  Qb4 {[%clk 0:02:14]} 34. Qxb4 {[%clk 0:05:49]}  axb4 {[%clk 0:01:48]} 35. Bc2 {[%clk 0:05:49]}  b6 {[%clk 0:01:52]} 36. Kf3 {[%clk 0:05:49]}  Ra7 {[%clk 0:01:52]} 37. h5 {[%clk 0:05:49]}  h6 {[%clk 0:01:52]} 38. Bh4 {[%clk 0:05:49]}  Bc3 {[%clk 0:01:45]} 39. R1e2 {[%clk 0:04:39]}  Bg7 {[%clk 0:01:45]} 40. Bd3 {[%clk 0:04:39]}  Rc7 {[%clk 0:01:45]} 41. Rg2 {[%clk 0:04:39]}  Ra7 {[%clk 0:01:45]} 42. Rge2 {[%clk 0:04:48]}  Rc7 {[%clk 0:00:53]} 43. Rg6 {[%clk 0:04:48]}  hxg5 {[%clk 0:00:53]} 44. fxg5 {[%clk 0:04:48]}  Be5 {[%clk 0:00:53]} 45. Re6 {[%clk 0:04:48]}  Kg7 {[%clk 0:00:53]} 46. R2xe5 {[%clk 0:04:48]}  dxe5 {[%clk 0:00:53]} 47. Rxe5 {[%clk 0:04:48]}  Rd7 {[%clk 0:00:46]} 48. Kf4 {[%clk 0:02:42]}  Rd6 {[%clk 0:00:46]} 49. h6+ {[%clk 0:02:42]}  Nxh6 {[%clk 0:00:46]} 50. gxh6+ {[%clk 0:02:42]}  Rxh6 {[%clk 0:00:46]} 51. Bxe7 {[%clk 0:02:42]}  Rg8 {[%clk 0:00:46]} 52. Rxf5 {[%clk 0:02:42]}  Rh3 {[%clk 0:00:46]} 53. Be4 {[%clk 0:01:54]}  Rxb3 {[%clk 0:00:41]} 54. d6 {[%clk 0:01:54]}  Rb2 {[%clk 0:00:41]} 55. Rg5+ {[%clk 0:01:54]} 1-0


[Site "http://www.Chess.com"]

[Event "FIDE World Rapid Chess Championship 2021"]
[White "Thybo, Jesper Sondergaard"]
[Black "Postny, Evgeny"]
[WhiteFideId "1438832"]
[BlackFideId "2804344"]
[WhiteElo "2401"]
[BlackElo "2454"]
[Result "1-0"]
[Round "08"]
[TimeControl "900+10"]
[Date "2021.12.27"]
[WhiteClock "0:00:22"]
[BlackClock "0:00:24"]

1. d4 {[%clk 0:00:02]}  Nf6 {[%clk 0:01:30]} 2. c4 {[%clk 0:00:02]}  e6 {[%clk 0:01:30]} 3. Nf3 {[%clk 0:00:02]}  Bb4+ {[%clk 0:01:30]} 4. Bd2 {[%clk 0:00:02]}  Qe7 {[%clk 0:01:30]} 5. g3 {[%clk 0:00:02]}  Bxd2+ {[%clk 0:01:30]} 6. Qxd2 {[%clk 0:00:02]}  Nc6 {[%clk 0:01:30]} 7. Nc3 {[%clk 0:00:02]}  d5 {[%clk 0:01:30]} 8. Ne5 {[%clk 0:00:02]}  dxc4 {[%clk 0:01:30]} 9. Nxc6 {[%clk 0:00:02]}  bxc6 {[%clk 0:01:30]} 10. Bg2 {[%clk 0:00:02]}  Nd5 {[%clk 0:15:55]} 11. O-O {[%clk 0:14:09]}  O-O {[%clk 0:13:48]} 12. Rfc1 {[%clk 0:14:09]}  Rb8 {[%clk 0:13:48]} 13. Ne4 {[%clk 0:14:09]}  Qb4 {[%clk 0:13:48]} 14. e3 {[%clk 0:12:25]}  Qxb2 {[%clk 0:13:24]} 15. Qxb2 {[%clk 0:11:25]}  Rxb2 {[%clk 0:10:55]} 16. Rxc4 {[%clk 0:11:25]}  Nb4 {[%clk 0:10:55]} 17. Nc5 {[%clk 0:11:06]}  a5 {[%clk 0:09:21]} 18. a3 {[%clk 0:09:39]}  Nd5 {[%clk 0:06:19]} 19. Nd3 {[%clk 0:06:43]}  Rb3 {[%clk 0:06:18]} 20. Nc5 {[%clk 0:04:30]}  Rb2 {[%clk 0:06:18]} 21. Ra4 {[%clk 0:04:30]}  f6 {[%clk 0:06:18]} 22. Rxa5 {[%clk 0:04:00]}  e5 {[%clk 0:02:54]} 23. Ra8 {[%clk 0:04:00]}  exd4 {[%clk 0:02:54]} 24. exd4 {[%clk 0:04:00]}  Nb6 {[%clk 0:01:44]} 25. Ra7 {[%clk 0:02:58]}  Rd8 {[%clk 0:01:44]} 26. Rxc7 {[%clk 0:02:58]}  Rxd4 {[%clk 0:01:44]} 27. a4 {[%clk 0:02:58]}  Bf5 {[%clk 0:00:28]} 28. a5 {[%clk 0:01:58]}  Nc8 {[%clk 0:00:28]} 29. Re1 {[%clk 0:01:58]}  h5 {[%clk 0:00:28]} 30. Bxc6 {[%clk 0:00:30]}  Rc2 {[%clk 0:00:15]} 31. Bb7 {[%clk 0:00:30]}  Nd6 {[%clk 0:00:15]} 32. a6 {[%clk 0:00:30]}  Ra2 {[%clk 0:00:15]} 33. Ne6 {[%clk 0:00:30]}  Bxe6 {[%clk 0:00:15]} 34. Rxe6 {[%clk 0:00:30]}  Nb5 {[%clk 0:00:15]} 35. Rc8+ {[%clk 0:00:30]}  Kf7 {[%clk 0:00:15]} 36. Rb6 {[%clk 0:00:30]}  Rd1+ {[%clk 0:00:15]} 37. Kg2 {[%clk 0:00:30]}  Nd6 {[%clk 0:00:15]} 38. Rcc6 {[%clk 0:00:22]}  Nf5 {[%clk 0:00:24]} 39. Rc7+ {[%clk 0:00:22]}  Kg8 {[%clk 0:00:24]} 40. Rc8+ {[%clk 0:00:22]}  Kf7 {[%clk 0:00:24]} 41. Be4 {[%clk 0:00:22]}  Ne3+ {[%clk 0:00:24]} 42. Kf3 {[%clk 0:00:22]}  Ng4 {[%clk 0:00:24]} 43. Rc7+ {[%clk 0:00:22]}  Ke8 {[%clk 0:00:24]} 44. Rb8+ {[%clk 0:00:22]}  Rd8 {[%clk 0:00:24]} 45. Bg6+ {[%clk 0:00:22]} 1-0


[Site "http://www.Chess.com"]

[Event "FIDE World Rapid Chess Championship 2021"]
[White "Erigaisi, Arjun"]
[Black "Krasenkow, Michal"]
[WhiteFideId "35009192"]
[BlackFideId "1113100"]
[WhiteElo "2397"]
[BlackElo "2430"]
[Result "1-0"]
[Round "08"]
[TimeControl "900+10"]
[Date "2021.12.27"]
[WhiteClock "0:05:31"]
[BlackClock "0:01:16"]

1. d4 {[%clk 0:15:00]}  d6 {[%clk 0:15:00]} 2. e4 {[%clk 0:15:00]}  Nf6 {[%clk 0:15:00]} 3. Nc3 {[%clk 0:15:00]}  c6 {[%clk 0:15:00]} 4. f4 {[%clk 0:15:32]}  Qa5 {[%clk 0:15:46]} 5. Bd3 {[%clk 0:15:32]}  e5 {[%clk 0:16:14]} 6. Nf3 {[%clk 0:12:59]}  Bg4 {[%clk 0:16:14]} 7. dxe5 {[%clk 0:12:59]}  dxe5 {[%clk 0:16:14]} 8. fxe5 {[%clk 0:12:59]}  Nfd7 {[%clk 0:16:14]} 9. Bf4 {[%clk 0:12:59]}  Bb4 {[%clk 0:16:14]} 10. O-O {[%clk 0:12:59]}  Bxc3 {[%clk 0:16:14]} 11. bxc3 {[%clk 0:12:59]}  O-O {[%clk 0:16:14]} 12. Rb1 {[%clk 0:12:59]}  b6 {[%clk 0:16:14]} 13. e6 {[%clk 0:12:35]}  Qc5+ {[%clk 0:11:57]} 14. Kh1 {[%clk 0:12:35]}  Bxe6 {[%clk 0:13:20]} 15. Ng5 {[%clk 0:08:41]}  Bxa2 {[%clk 0:13:12]} 16. e5 {[%clk 0:06:21]}  h6 {[%clk 0:13:12]} 17. Ne4 {[%clk 0:06:21]}  Qe7 {[%clk 0:13:12]} 18. Ra1 {[%clk 0:06:21]}  Bd5 {[%clk 0:11:11]} 19. Qh5 {[%clk 0:06:14]}  Bxe4 {[%clk 0:06:00]} 20. Bxe4 {[%clk 0:05:32]}  Nc5 {[%clk 0:06:00]} 21. Bf5 {[%clk 0:05:32]}  Ne6 {[%clk 0:03:30]} 22. Bxh6 {[%clk 0:05:49]}  g6 {[%clk 0:03:30]} 23. Bxg6 {[%clk 0:05:31]}  fxg6 {[%clk 0:01:16]} 24. Qxg6+ {[%clk 0:05:31]}  Ng7 {[%clk 0:01:16]} 25. Bxg7 {[%clk 0:05:31]} 1-0


[Site "http://www.Chess.com"]

[Event "FIDE World Rapid Chess Championship 2021"]
[White "Aditya, Mittal"]
[Black "Cuenca Jimenez, Jose Fernando"]
[WhiteFideId "35042025"]
[BlackFideId "2255570"]
[WhiteElo "1488"]
[BlackElo "2421"]
[Result "0-1"]
[Round "08"]
[TimeControl "900+10"]
[Date "2021.12.27"]
[WhiteClock "0:00:12"]
[BlackClock "0:00:48"]

1. d4 {[%clk 0:15:00]}  Nf6 {[%clk 0:15:00]} 2. c4 {[%clk 0:15:00]}  e6 {[%clk 0:15:00]} 3. Nf3 {[%clk 0:15:00]}  d5 {[%clk 0:15:24]} 4. Nc3 {[%clk 0:15:18]}  Nbd7 {[%clk 0:15:24]} 5. cxd5 {[%clk 0:15:18]}  exd5 {[%clk 0:15:24]} 6. Bg5 {[%clk 0:15:18]}  Be7 {[%clk 0:14:01]} 7. e3 {[%clk 0:15:43]}  c6 {[%clk 0:14:01]} 8. Bd3 {[%clk 0:15:43]}  Ne4 {[%clk 0:14:01]} 9. Bxe7 {[%clk 0:15:43]}  Qxe7 {[%clk 0:14:01]} 10. O-O {[%clk 0:15:43]}  O-O {[%clk 0:14:09]} 11. Qc2 {[%clk 0:13:00]}  Ndf6 {[%clk 0:14:09]} 12. Ne5 {[%clk 0:13:00]}  Bf5 {[%clk 0:14:09]} 13. Ne2 {[%clk 0:12:33]}  g6 {[%clk 0:12:31]} 14. g4 {[%clk 0:10:50]}  Nxg4 {[%clk 0:11:29]} 15. Nxg4 {[%clk 0:07:58]}  Bxg4 {[%clk 0:11:29]} 16. f3 {[%clk 0:07:58]}  Bh3 {[%clk 0:09:07]} 17. fxe4 {[%clk 0:08:12]}  Qg5+ {[%clk 0:09:07]} 18. Ng3 {[%clk 0:08:12]}  Bxf1 {[%clk 0:09:07]} 19. Bxf1 {[%clk 0:08:28]}  Qxe3+ {[%clk 0:04:14]} 20. Qf2 {[%clk 0:08:28]}  Qxf2+ {[%clk 0:04:14]} 21. Kxf2 {[%clk 0:08:28]}  Rad8 {[%clk 0:02:56]} 22. Rd1 {[%clk 0:06:39]}  Kg7 {[%clk 0:02:56]} 23. Bg2 {[%clk 0:06:39]}  dxe4 {[%clk 0:02:56]} 24. Nxe4 {[%clk 0:06:39]}  Rfe8 {[%clk 0:02:56]} 25. Nc3 {[%clk 0:06:39]}  f5 {[%clk 0:02:56]} 26. b4 {[%clk 0:06:39]}  Re7 {[%clk 0:02:33]} 27. a4 {[%clk 0:05:47]}  Red7 {[%clk 0:02:33]} 28. Ne2 {[%clk 0:05:47]}  a6 {[%clk 0:02:33]} 29. Rb1 {[%clk 0:05:47]}  Rd6 {[%clk 0:01:40]} 30. Rc1 {[%clk 0:04:54]}  R8d7 {[%clk 0:01:40]} 31. Rc5 {[%clk 0:04:54]}  Kf6 {[%clk 0:01:40]} 32. Bf3 {[%clk 0:04:54]}  Re7 {[%clk 0:01:40]} 33. b5 {[%clk 0:04:13]}  axb5 {[%clk 0:00:38]} 34. axb5 {[%clk 0:04:13]}  cxb5 {[%clk 0:00:38]} 35. Rxb5 {[%clk 0:04:13]}  b6 {[%clk 0:00:38]} 36. Nc3 {[%clk 0:04:13]}  Ra7 {[%clk 0:00:38]} 37. Nd5+ {[%clk 0:03:07]}  Kg5 {[%clk 0:00:36]} 38. Kg3 {[%clk 0:03:07]}  Ra5 {[%clk 0:00:36]} 39. h4+ {[%clk 0:03:07]}  Kh6 {[%clk 0:00:36]} 40. Rxb6 {[%clk 0:00:12]}  Raxd5 {[%clk 0:00:48]} 0-1


[Site "http://www.Chess.com"]

[Event "FIDE World Rapid Chess Championship 2021"]
[White "Smirin, Ilia"]
[Black "Saraci, Nderim"]
[WhiteFideId "2801990"]
[BlackFideId "6351921"]
[WhiteElo "2663"]
[BlackElo "2414"]
[Result "1/2-1/2"]
[Round "08"]
[TimeControl "900+10"]
[Date "2021.12.27"]
[WhiteClock "0:01:56"]
[BlackClock "0:00:29"]

1. e4 {[%clk 0:15:00]}  c5 {[%clk 0:15:00]} 2. Nf3 {[%clk 0:15:00]}  Nc6 {[%clk 0:15:00]} 3. Bb5 {[%clk 0:15:00]}  g6 {[%clk 0:15:17]} 4. c3 {[%clk 0:15:40]}  Bg7 {[%clk 0:15:17]} 5. d4 {[%clk 0:15:40]}  cxd4 {[%clk 0:15:17]} 6. cxd4 {[%clk 0:15:39]}  Nf6 {[%clk 0:13:25]} 7. Nc3 {[%clk 0:15:39]}  d5 {[%clk 0:13:25]} 8. Ne5 {[%clk 0:15:39]}  Bd7 {[%clk 0:13:25]} 9. Nxd7 {[%clk 0:15:39]}  Qxd7 {[%clk 0:13:25]} 10. e5 {[%clk 0:15:39]}  Ng8 {[%clk 0:11:53]} 11. h4 {[%clk 0:15:02]}  h5 {[%clk 0:11:28]} 12. Na4 {[%clk 0:15:02]}  e6 {[%clk 0:11:28]} 13. Rh3 {[%clk 0:12:10]}  Nge7 {[%clk 0:09:39]} 14. Nc5 {[%clk 0:10:50]}  Qc7 {[%clk 0:08:16]} 15. Rb3 {[%clk 0:10:50]}  Rb8 {[%clk 0:08:16]} 16. Bg5 {[%clk 0:10:46]}  O-O {[%clk 0:06:20]} 17. Rc1 {[%clk 0:08:44]}  Nf5 {[%clk 0:05:24]} 18. Bxc6 {[%clk 0:08:44]}  Qxc6 {[%clk 0:03:50]} 19. f3 {[%clk 0:08:29]}  b5 {[%clk 0:02:34]} 20. g4 {[%clk 0:08:28]}  hxg4 {[%clk 0:02:34]} 21. fxg4 {[%clk 0:08:28]}  Nh6 {[%clk 0:02:34]} 22. Ra3 {[%clk 0:08:28]}  b4 {[%clk 0:02:34]} 23. Rxa7 {[%clk 0:08:28]}  Qb5 {[%clk 0:02:34]} 24. Qf3 {[%clk 0:07:03]}  Rbc8 {[%clk 0:00:24]} 25. Qf4 {[%clk 0:07:03]}  Kh7 {[%clk 0:00:24]} 26. Kd2 {[%clk 0:07:03]}  Ra8 {[%clk 0:00:17]} 27. Rb7 {[%clk 0:04:58]}  Qa5 {[%clk 0:00:17]} 28. Kd1 {[%clk 0:04:58]}  Qxa2 {[%clk 0:00:17]} 29. Bxh6 {[%clk 0:02:59]}  Bxh6 {[%clk 0:00:14]} 30. Rxf7+ {[%clk 0:02:59]}  Rxf7 {[%clk 0:00:14]} 31. Qxf7+ {[%clk 0:02:59]}  Kh8 {[%clk 0:00:14]} 32. Qf6+ {[%clk 0:02:59]}  Bg7 {[%clk 0:00:14]} 33. Qxg6 {[%clk 0:02:59]}  Qxb2 {[%clk 0:00:14]} 34. Nxe6 {[%clk 0:01:56]}  Qb3+ {[%clk 0:00:26]} 35. Qc2 {[%clk 0:01:56]}  Qf3+ {[%clk 0:00:26]} 36. Qe2 {[%clk 0:01:56]}  Qh1+ {[%clk 0:00:26]} 37. Qe1 {[%clk 0:01:56]}  Qf3+ {[%clk 0:00:26]} 38. Qe2 {[%clk 0:01:56]}  Qh1+ {[%clk 0:00:26]} 39. Qe1 {[%clk 0:01:56]}  Qf3+ {[%clk 0:00:26]} 40. Qe2 {[%clk 0:01:56]}  Qh1+ {[%clk 0:00:29]} 1/2-1/2


[Site "http://www.Chess.com"]

[Event "FIDE World Rapid Chess Championship 2021"]
[White "Gagunashvili, Merab"]
[Black "Wieczorek, Oskar"]
[WhiteFideId "13601652"]
[BlackFideId "1133950"]
[WhiteElo "2538"]
[BlackElo "2367"]
[Result "1/2-1/2"]
[Round "08"]
[TimeControl "900+10"]
[Date "2021.12.27"]
[WhiteClock "0:03:29"]
[BlackClock "0:00:20"]

1. d4 {[%clk 0:15:00]}  Nf6 {[%clk 0:15:00]} 2. c4 {[%clk 0:15:00]}  c5 {[%clk 0:15:00]} 3. e3 {[%clk 0:15:00]}  g6 {[%clk 0:15:46]} 4. Nf3 {[%clk 0:15:41]}  Bg7 {[%clk 0:15:46]} 5. Nc3 {[%clk 0:15:41]}  O-O {[%clk 0:15:46]} 6. Bd3 {[%clk 0:15:41]}  cxd4 {[%clk 0:15:46]} 7. exd4 {[%clk 0:15:41]}  d5 {[%clk 0:15:46]} 8. h3 {[%clk 0:15:41]}  Nc6 {[%clk 0:15:46]} 9. O-O {[%clk 0:15:47]}  Nb4 {[%clk 0:14:41]} 10. Be2 {[%clk 0:15:47]}  dxc4 {[%clk 0:14:41]} 11. Bxc4 {[%clk 0:15:47]}  Bf5 {[%clk 0:14:41]} 12. Bg5 {[%clk 0:15:47]}  Rc8 {[%clk 0:14:41]} 13. Bb3 {[%clk 0:15:47]}  h6 {[%clk 0:13:28]} 14. Bh4 {[%clk 0:15:36]}  Nbd5 {[%clk 0:10:18]} 15. Nxd5 {[%clk 0:15:33]}  Nxd5 {[%clk 0:10:18]} 16. Re1 {[%clk 0:15:33]}  g5 {[%clk 0:07:15]} 17. Bg3 {[%clk 0:15:58]}  e6 {[%clk 0:07:15]} 18. Qd2 {[%clk 0:15:58]}  Qb6 {[%clk 0:07:15]} 19. Be5 {[%clk 0:15:58]}  Qb4 {[%clk 0:07:15]} 20. Qxb4 {[%clk 0:15:58]}  Nxb4 {[%clk 0:05:45]} 21. Bd6 {[%clk 0:15:30]}  Nd3 {[%clk 0:05:45]} 22. Re2 {[%clk 0:15:39]}  Rfd8 {[%clk 0:02:55]} 23. Be5 {[%clk 0:15:39]}  Nxe5 {[%clk 0:04:39]} 24. dxe5 {[%clk 0:11:23]}  Bf8 {[%clk 0:04:39]} 25. Ree1 {[%clk 0:10:11]}  Bc5 {[%clk 0:03:22]} 26. Rad1 {[%clk 0:10:11]}  Bb6 {[%clk 0:01:26]} 27. Rxd8+ {[%clk 0:09:30]}  Rxd8 {[%clk 0:01:26]} 28. Re2 {[%clk 0:09:30]}  Rc8 {[%clk 0:01:26]} 29. Re1 {[%clk 0:09:30]}  Kf8 {[%clk 0:01:26]} 30. Rd1 {[%clk 0:09:30]}  Ke7 {[%clk 0:01:10]} 31. Nd4 {[%clk 0:08:12]}  Be4 {[%clk 0:01:10]} 32. Nb5 {[%clk 0:08:12]}  Rc5 {[%clk 0:01:10]} 33. Nd6 {[%clk 0:08:12]}  Rxe5 {[%clk 0:01:10]} 34. Nxe4 {[%clk 0:07:45]}  Rxe4 {[%clk 0:00:05]} 35. Kf1 {[%clk 0:07:45]}  Rb4 {[%clk 0:00:05]} 36. Rd2 {[%clk 0:07:45]}  a5 {[%clk 0:00:05]} 37. Bd1 {[%clk 0:07:45]}  Rc4 {[%clk 0:00:05]} 38. Rc2 {[%clk 0:07:45]}  Rd4 {[%clk 0:00:05]} 39. Be2 {[%clk 0:07:45]}  Rd8 {[%clk 0:00:05]} 40. Bf3 {[%clk 0:06:35]}  Rd7 {[%clk 0:00:31]} 41. Ke2 {[%clk 0:06:35]}  Bd4 {[%clk 0:00:31]} 42. b3 {[%clk 0:06:35]}  b6 {[%clk 0:00:31]} 43. Rc8 {[%clk 0:06:35]}  Bc5 {[%clk 0:00:31]} 44. a4 {[%clk 0:06:35]}  Rd4 {[%clk 0:00:31]} 45. Rc7+ {[%clk 0:06:35]}  Kf8 {[%clk 0:00:31]} 46. Bh5 {[%clk 0:06:35]}  Re4+ {[%clk 0:00:31]} 47. Kd3 {[%clk 0:06:35]}  Rd4+ {[%clk 0:00:31]} 48. Ke2 {[%clk 0:06:42]}  Rf4 {[%clk 0:00:00]} 49. f3 {[%clk 0:06:42]}  Kg7 {[%clk 0:00:00]} 50. Kd3 {[%clk 0:06:42]}  Rd4+ {[%clk 0:00:00]} 51. Ke2 {[%clk 0:06:42]}  Rf4 {[%clk 0:00:00]} 52. Kd3 {[%clk 0:06:42]}  Kf8 {[%clk 0:00:00]} 53. Ke2 {[%clk 0:06:42]}  Be7 {[%clk 0:00:00]} 54. Rc4 {[%clk 0:06:42]}  Rf5 {[%clk 0:00:00]} 55. Rc8+ {[%clk 0:06:42]}  Kg7 {[%clk 0:00:00]} 56. Rc7 {[%clk 0:05:49]}  Bc5 {[%clk 0:00:22]} 57. Kd3 {[%clk 0:05:49]}  Kf8 {[%clk 0:00:22]} 58. Ke2 {[%clk 0:05:49]}  Re5+ {[%clk 0:00:22]} 59. Kd3 {[%clk 0:05:49]}  Rd5+ {[%clk 0:00:22]} 60. Ke2 {[%clk 0:05:49]}  Be7 {[%clk 0:00:22]} 61. Rb7 {[%clk 0:05:49]}  Rd6 {[%clk 0:00:22]} 62. Ke3 {[%clk 0:05:49]}  f5 {[%clk 0:00:22]} 63. Ke2 {[%clk 0:05:49]}  Rc6 {[%clk 0:00:22]} 64. Kd3 {[%clk 0:05:49]}  Bb4 {[%clk 0:00:35]} 65. Rf7+ {[%clk 0:05:32]}  Kg8 {[%clk 0:00:35]} 66. Rb7 {[%clk 0:05:32]}  Rd6+ {[%clk 0:00:35]} 67. Kc4 {[%clk 0:05:32]}  Bc5 {[%clk 0:00:35]} 68. Kc3 {[%clk 0:05:32]}  Bd4+ {[%clk 0:00:26]} 69. Kc4 {[%clk 0:03:51]}  Bc5 {[%clk 0:00:26]} 70. Kc3 {[%clk 0:03:51]}  e5 {[%clk 0:00:26]} 71. Rf7 {[%clk 0:03:51]}  e4 {[%clk 0:00:26]} 72. Rxf5 {[%clk 0:03:51]}  e3 {[%clk 0:00:26]} 73. f4 {[%clk 0:03:51]}  Rd2 {[%clk 0:00:26]} 74. fxg5 {[%clk 0:03:51]}  Bb4+ {[%clk 0:00:26]} 75. Kc4 {[%clk 0:03:51]}  e2 {[%clk 0:00:26]} 76. Re5 {[%clk 0:03:51]}  Rc2+ {[%clk 0:00:26]} 77. Kd3 {[%clk 0:03:51]}  Rd2+ {[%clk 0:00:20]} 78. Kc4 {[%clk 0:03:29]}  Rc2+ {[%clk 0:00:20]} 79. Kd3 {[%clk 0:03:29]}  Rd2+ {[%clk 0:00:20]} 80. Kc4 {[%clk 0:03:29]}  Rc2+ {[%clk 0:00:20]} 1/2-1/2


[Site "http://www.Chess.com"]